[Event "GER-ch Youth-ODJM 2022 A"]
[Site "Willingen"]
[Date "2022.06.10"]
[Round "8.9"]
[White "Lohr, Maximilian"]
[Black "Kruse, Victor"]
[Result "1-0"]
[ECO "D00"]
[WhiteElo "2080"]
[BlackElo "1733"]
[Annotator "TA"]
[PlyCount "87"]
[EventDate "2022.06.05"]
[EventType "swiss"]
[EventRounds "9"]
[EventCountry "GER"]
[SourceTitle "playchess.com"]
[Source "ChessBase"]
[SourceQuality "1"]
[TimeControl "40/4500+30:900+30"]

{[%evp 9,87,-5,58,27,42,-30,29,-22,50,0,61,10,67,43,62,61,97,95,103,62,57,60,85,81,123,119,129,-22,-9,-47,8,3,10,12,21,22,14,0,0,0,0,-125,-128,-115,-75,-68,-84,-75,-85,-79,-14,-26,0,-66,-76,-73,-43,-68,83,-118,-90,-93,225,243,273,266,250,217,290,250,274,281,283,275,743,747,734,729,805,693]} 1. d4 {[%emt 0:00:00]} d5 {[%emt 0:00:00]} 2. Nc3 {[%emt 0:00:00]} c6 {[%emt 0:00:00]} 3. Bf4 {[%emt 0:00:00]} e6 {[%emt 0:00:00]} 4. e3 {[%emt 0:00:00]} Bb4 {[%emt 0:00:00]} 5. Qg4 {[%emt 0:00:00] [#]} Bf8 $146 {[%emt 0:16:43]} (5... g6 $11 6. Qf3 Bxc3+ 7. bxc3 Nd7) ({Predecessor:} 5... g6 6. Qd1 c5 7. Nge2 c4 8. a3 Bd6 9. e4 Bxf4 10. Nxf4 Nf6 11. e5 Nfd7 {1-0 (32) Piacentile,C (1200)-Cherry,B (731) LSS email 2012}) 6. Qf3 {[%emt 0:00:00] D00: 1 d4 d5: Unusual lines.} Nf6 {[%emt 0:06:57]} 7. O-O-O {[%emt 0:01:38]} ({Better is} 7. a3 $14) 7... h5 {[%emt 0:06:48]} (7... b5 $142) 8. h3 {[%emt 0:01:26]} (8. e4 $142) 8... b6 {[%emt 0:07:41]} (8... b5 $1 $11) 9. g3 {[%emt 0:05:03]} (9. g4 $14) 9... Bd6 {[%emt 0:06:00]} (9... b5 $11) 10. Bg2 {[%emt 0:03:12]} (10. Nge2 $14) 10... Na6 {[%emt 0:05:40]} (10... b5 $11) 11. Nge2 {[%emt 0:02:21]} Bb7 {[%emt 0:04:59]} 12. g4 {[%emt 0:02:45][%cal Bg3g4,Bg4g5][%mdl 32]} Qe7 {[%emt 0:01:45]} 13. g5 {[%emt 0:01:04]} Nd7 {[%emt 0:00:40]} 14. e4 {[%emt 0:00:44][%cal Re4d5]} Bxf4+ {[%emt 0:01:51]} 15. Qxf4 {[%emt 0:01:23]} O-O-O {[%emt 0:01:18]} 16. exd5 {[%emt 0:00:47]} cxd5 {[%emt 0:02:25]} 17. Nb5 {[%emt 0:01:45][%cal Rb5a7] Prevents Nc7.} Nf8 {[%emt 0:02:06]} 18. Rd3 $2 {[%emt 0:04:51] 0x0.00207b593ffcdp-1022s more active pieces. The black rooks are badly placed.} ({White should play} 18. Nxa7+ $16 Kd7 19. Nc3) 18... Bc6 $1 $11 {[%emt 0:05:39][%cal Bb7c6,Bc6b5,Bb5c4][%mdl 32]} 19. Rc3 {[%emt 0:00:11] [#]} Nb8 {[%emt 0:00:10]} (19... Ng6 $1 $15 20. Qd2 (20. Rxc6+ Kb7 $17) 20... Kb7) 20. h4 {[%emt 0:06:43]} Kb7 {[%emt 0:00:08]} 21. Na3 {[%emt 0:00:48]} (21. a4 a6 22. Na3 Ng6 $15) 21... Ng6 {[%emt 0:00:41]} 22. Qg3 {[%emt 0:01:21]} b5 {[%emt 0:03:39] [#]} 23. Nxb5 {[%emt 0:03:33]} Bxb5 {[%emt 0:00:47]} 24. Rb3 {[%emt 0:00:07]} Ka6 {[%emt 0:04:10]} 25. Nc3 {[%emt 0:00:24]} (25. Ra3+ $1 $11 Kb7 26. Rb3) 25... Bc4 $17 {[%emt 0:01:01]} 26. Bf1 {[%emt 0:00:32][%cal Oc3e4] Threatens to win with Ne4!} Nc6 {[%emt 0:00:32]} 27. Na4 {[%emt 0:00:57]} Nxd4 {[%emt 0:01:18]} 28. Qc3 {[%emt 0:07:35][%csl LRc4,LRd4]} Nxb3+ {[%emt 0:03:59]} 29. axb3 {[%emt 0:00:04][%mdl 64] [#] Pin} Rc8 {[%emt 0:02:03]} 30. bxc4 $11 {[%emt 0:00:17] Strongly threatening Qb3.} Kb7 {[%emt 0:00:16]} 31. c5 {[%emt 0:01:41]} (31. Rh3 $1 $11) 31... Qc7 $1 $15 {[%emt 0:00:42] aiming for ...Qf4+.} 32. Kb1 {[%emt 0:02:43]} Ne5 {[%emt 0:00:31]} (32... Rb8 $5 {[%cal Rb7a8]} 33. b3 e5 $17) 33. Rh3 {[%emt 0:01:23]} Nc6 $2 {[%emt 0:00:52] [#]} ({Of course not} 33... Ka8 34. Qa3 Nd7 35. Bb5 Nxc5 36. Rc3 $11) (33... Rb8 $1 $15 {keeps the upper hand.} 34. Qa3 Nc6) 34. b4 $2 {[%emt 0:03:47]} ({Don't blunder} 34. Qd3 $2 Qa5 35. Qb3+ Ka8 $19) (34. Qb3+ $1 $16 {is necessary to keep the advantage.} Ka8 35. Nb6+ axb6 36. cxb6) 34... Qe5 {[%emt 0:00:32]} 35. b5 {[%emt 0:00:19]} Ka8 $2 {[%emt 0:00:34][%mdl 8192] This move loses the game for Black.} 36. bxc6 $18 {[%emt 0:00:22] Chess con chili.} Qxc3 {[%emt 0:00:05]} 37. Rxc3 {[%emt 0:00:53][%cal Oa4b6] And now Nb6+! would win.} ({Not} 37. Nxc3 Rxc6 38. Na4 Rb8+ 39. Rb3 Rxb3+ 40. cxb3 Kb7 $14) 37... Rxc6 {[%emt 0:00:10]} 38. Rb3 {[%emt 0:07:02]} Rb8 {[%emt 0:00:44]} 39. Bb5 {[%emt 0:00:09]} Rc7 {[%emt 0:00:17]} 40. Kb2 {[%emt 0:06:16]} f6 {[%emt 0:00:37]} 41. g6 {[%emt 0:15:20]} Rh8 $2 {[%emt 0:00:00]} (41... e5 42. Kc3 Rbb7) 42. c6 {[%emt 0:00:00] White is clearly winning.} a5 {[%emt 0:01:18]} 43. Ba6 {[%emt 0:00:00]} Re7 {[%emt 0:06:47]} 44. Nb6+ {[%emt 0:00:00] Weighted Error Value: White=0.34/Black=0.43} 1-0

[Event "GER-ch Youth-ODJM 2022 A"]
[Site "Willingen"]
[Date "2022.06.10"]
[Round "8.10"]
[White "Schmitt, Daniel"]
[Black "Weigand, Anton"]
[Result "1-0"]
[ECO "B33"]
[WhiteElo "2128"]
[BlackElo "1872"]
[Annotator "TA"]
[PlyCount "65"]
[EventDate "2022.06.05"]
[EventType "swiss"]
[EventRounds "9"]
[EventCountry "GER"]
[SourceTitle "playchess.com"]
[Source "ChessBase"]
[SourceQuality "1"]
[TimeControl "40/4500+30:900+30"]

{[%evp 25,65,9,15,0,0,0,10,0,13,7,19,8,72,63,73,75,96,90,112,43,78,80,83,85,150,137,138,135,233,201,191,196,195,192,308,299,401,408,404,380,347,300]} 1. e4 {[%emt 0:00:00]} c5 {[%emt 0:00:00]} 2. Nf3 {[%emt 0:00:00][%cal Bg1f3,Bf3d4,Bd4b5,Bb5a3,Ba3c2][%mdl 32]} e6 {[%emt 0:00:00]} 3. d4 {[%emt 0:00:00]} cxd4 {[%emt 0:00:00]} 4. Nxd4 {[%emt 0:00:00]} Nc6 {[%emt 0:00:00]} 5. Nc3 {[%emt 0:00:00]} Nf6 {[%emt 0:00:00]} 6. Ndb5 {[%emt 0:00:00]} d6 {[%emt 0:00:00]} 7. Bf4 {[%emt 0:00:00]} e5 {[%emt 0:00:00]} 8. Bg5 {[%emt 0:00:00]} a6 {[%emt 0:00:00]} 9. Na3 {[%emt 0:00:00]} b5 {[%emt 0:00:00]} 10. Nd5 {[%emt 0:00:00]} Be7 {[%emt 0:00:00][%cal Bf8e7,Be7f6,Bf6g7][%mdl 32]} 11. Bxf6 {[%emt 0:00:00]} Bxf6 {[%emt 0:00:00]} 12. c4 {[%emt 0:00:00]} b4 {[%emt 0:00:00] 12...0-0 might become the main line.} 13. Nc2 {[%emt 0:00:00]} a5 {[%emt 0:00:00]} 14. g3 {[%emt 0:00:00] B33: Sicilian: Pelikan and Sveshnikov Variations.} g6 {[%emt 0:00:00] 14...Bg5 is vanishing.} 15. Bg2 {[%emt 0:00:00]} Bg7 {[%emt 0:00:00]} 16. O-O {[%emt 0:00:00] The position is equal.} O-O {[%emt 0:00:00]} 17. b3 {[%emt 0:00:00]} Rb8 {[%emt 0:01:19]} 18. Qd2 {[%emt 0:03:00]} f5 {[%emt 0:07:13] [#]} (18... Be6 $11 {remains equal.}) 19. exf5 $1 $16 {[%emt 0:03:03]} gxf5 {[%emt 0:11:40][%cal Of5f4]} 20. Rad1 {[%emt 0:01:24] [#]} Bb7 $146 {[%emt 0:00:35]} ({Predecessor:} 20... e4 21. Nf4 Be5 22. Qd5+ {1-0 (21) Utiyama,M (2128)-Silva,S (2041) Varginha 2008}) 21. f4 {[%emt 0:07:22]} Kh8 {[%emt 0:05:15] [#]} 22. Bh3 {[%emt 0:01:50]} (22. Nde3 $1 $16) 22... Nd4 {[%emt 0:05:02]} 23. Nxd4 {[%emt 0:11:42]} exd4 {[%emt 0:00:44]} 24. Rfe1 {[%emt 0:03:58]} Qc8 {[%emt 0:04:50]} (24... Bxd5 $142 25. cxd5 Rb5) 25. Qd3 {[%emt 0:02:57] 0x0.00207e560e15dp-1022s more active pieces.} Bxd5 {[%emt 0:02:40]} 26. cxd5 {[%emt 0:00:06]} Re8 {[%emt 0:06:55]} (26... a4 $16 {keeps fighting.} 27. Re6 (27. bxa4 Ra8 $16) 27... Qc5) 27. Rxe8+ {[%emt 0:03:37]} ({Don't do} 27. Qxf5 $6 Rxe1+ 28. Rxe1 Qc3 $16) 27... Qxe8 {[%emt 0:00:24]} 28. Bxf5 {[%emt 0:00:11][%cal Bh3f5,Bf5h7,Bh7d3,Bd3c4][%mdl 32]} Qe3+ {[%emt 0:01:49]} 29. Kf1 {[%emt 0:05:13]} Re8 {[%emt 0:03:27]} (29... Qxd3+ {might work better.} 30. Bxd3 Rc8) 30. Bxh7 $18 {[%emt 0:03:05]} Rc8 {[%emt 0:01:41]} 31. Re1 {[%emt 0:01:10]} Qxd3+ {[%emt 0:01:19]} 32. Bxd3 {[%emt 0:00:07]} Kg8 {[%emt 0:01:21]} 33. Bc4 {[%emt 0:03:43] Weighted Error Value: White=0.08 (flawless) /Black=0.34} 1-0

[Event "GER-ch Youth-ODJM 2022 A"]
[Site "Willingen"]
[Date "2022.06.10"]
[Round "8.11"]
[White "Struck, Lasse"]
[Black "Dornieden, Jonas"]
[Result "0-1"]
[ECO "B24"]
[WhiteElo "1847"]
[BlackElo "2069"]
[Annotator "TA"]
[PlyCount "102"]
[EventDate "2022.06.05"]
[EventType "swiss"]
[EventRounds "9"]
[EventCountry "GER"]
[SourceTitle "playchess.com"]
[Source "ChessBase"]
[SourceQuality "1"]
[TimeControl "40/4500+30:900+30"]

{[%evp 9,102,0,0,0,0,0,36,0,56,4,75,68,77,66,151,145,143,132,136,151,134,93,183,115,127,116,410,404,389,381,406,428,425,432,347,231,243,20,24,0,0,-16,-18,-28,-16,-28,-24,-102,-98,-98,-91,-153,-148,-180,-206,-210,-206,-199,-198,-187,-177,-177,-168,-224,-114,-119,-81,-89,-72,-72,-36,-36,-64,-233,-239,-560,-585,-807,-713,-850,-832,-1138,-1158,-1428,-1379,-957,-599,-1713,-1830,-2770,-2399,-1574,-588,-1376,-635]} 1. e4 {[%emt 0:00:00]} c5 {[%emt 0:00:00]} 2. Nc3 {[%emt 0:00:00]} Nc6 {[%emt 0:00:00]} 3. Bb5 {[%emt 0:00:00]} Nd4 {[%emt 0:00:00]} 4. Bc4 {[%emt 0:00:00]} e6 {[%emt 0:00:00]} 5. Nge2 {[%emt 0:00:00]} a6 {[%emt 0:00:00]} 6. a4 {[%emt 0:00:00] Inhibits b5. B23: Closed Sicilian: Lines without g3.} Nf6 {[%emt 0:00:00]} 7. O-O {[%emt 0:00:00]} Rb8 {[%emt 0:00:00]} 8. e5 {[%emt 0:00:27] [#] White is slightly better.} Ng8 $146 {[%emt 0:00:04]} (8... d5 $11) ({Predecessor:} 8... d5 9. exf6 dxc4 10. fxg7 Bxg7 11. Ng3 O-O 12. Nce2 Bd7 13. Nxd4 Bxd4 14. d3 Kh8 15. dxc4 {1-0 (46) Paehtz,E (2457)-Cramling,P (2495) Beijing 2011}) 9. d3 {[%emt 0:06:52]} (9. Ne4 $14) 9... Ne7 {[%emt 0:09:23]} (9... Nc6 $11) 10. Nxd4 $16 {[%emt 0:08:05]} cxd4 {[%emt 0:00:05]} 11. Ne4 {[%emt 0:02:16][%cal Re4d6]} Nc6 {[%emt 0:01:44]} (11... Nf5 $1 $14) 12. Bg5 $36 {[%emt 0:06:51][%mdl 2048] White is really pushing.} Qc7 {[%emt 0:03:28]} 13. f4 {[%emt 0:00:27][%cal Bf2f4,Bf4f5][%mdl 32]} b5 {[%emt 0:14:49]} 14. axb5 {[%emt 0:01:23]} axb5 {[%emt 0:00:05]} 15. Ba2 {[%emt 0:13:59]} Nb4 {[%emt 0:07:10] [#]} (15... Bb7 $16) 16. Bb3 {[%emt 0:01:40]} ({White should try} 16. f5 $1 $18) 16... Bb7 {[%emt 0:01:55]} 17. f5 {[%emt 0:09:33] Black must now prevent fxe6.} ({Resist} 17. Ra7 Nc6 18. Ra1 Na5 $14) 17... Bd5 {[%emt 0:11:29][%mdl 8192]} (17... Bxe4 $16 {was worth a try.} 18. dxe4 Bc5) 18. Nd6+ {[%emt 0:06:52]} Bxd6 {[%emt 0:00:12]} 19. exd6 {[%emt 0:00:07]} Qb7 {[%emt 0:06:25]} 20. fxe6 {[%emt 0:05:40]} dxe6 {[%emt 0:01:07]} 21. Be7 {[%emt 0:03:02]} Bxb3 {[%emt 0:06:04]} 22. cxb3 {[%emt 0:00:19]} h5 {[%emt 0:02:48]} 23. Rc1 $2 {[%emt 0:02:10]} (23. Qe2 $18 {[%cal Of1f7]} Rh7 24. Bg5 (24. Qf2 g6 $18)) 23... Nd5 $11 {[%emt 0:02:12]} 24. Qf3 {[%emt 0:00:31]} f6 {[%emt 0:00:41]} 25. Qe4 {[%emt 0:05:00] Threatens to win with Qg6+.} Kf7 {[%emt 0:01:24] Against Qg6+} ({Don't take} 25... Nxe7 26. Rc7 (26. Qxe6 Qd7 $14) 26... Qxe4 27. Rxe7+ Kf8 28. dxe4 $14) 26. Qxd4 {[%emt 0:02:03][%cal Oe7f6]} Qb6 {[%emt 0:00:37] Dancing on a razor blade.} 27. Qxb6 {[%emt 0:02:06]} Rxb6 {[%emt 0:00:03]} 28. Ra1 {[%emt 0:02:21]} (28. Rc5 $11 {keeps the balance.}) 28... Nxe7 $17 {[%emt 0:01:07]} 29. dxe7 {[%emt 0:00:14][%mdl 4096] Endgame KRR-KRR} Re8 {[%emt 0:00:12]} 30. Ra7 {[%emt 0:02:02]} ({White should play} 30. Rac1) 30... Rxe7 {[%emt 0:00:10]} 31. Rfa1 {[%emt 0:00:59]} Rd6 {[%emt 0:02:06]} 32. Rxe7+ {[%emt 0:00:27]} Kxe7 $19 {[%emt 0:00:04] KR-KR} 33. Ra5 {[%emt 0:00:51]} Rxd3 {[%emt 0:06:28]} 34. Rxb5 {[%emt 0:00:08]} Rd1+ {[%emt 0:00:26]} 35. Kf2 Rd2+ 36. Kf3 {[%emt 0:00:41] [#]} (36. Kf1 $142) 36... Rxb2 {[%emt 0:01:43]} (36... g5 $1 $19 {aiming for ...f5.} 37. Rb7+ Kd6) 37. Rb7+ $17 {[%emt 0:00:23]} Kf8 {[%emt 0:01:57]} 38. b4 {[%emt 0:00:55]} Kg8 {[%emt 0:01:14]} 39. b5 {[%emt 0:01:15]} h4 {[%emt 0:02:13]} 40. h3 {[%emt 0:01:55]} Kh7 {[%emt 0:01:59] Hoping for ...Kg6.} 41. Rb8 $2 {[%emt 0:00:00]} (41. b6 $15) 41... Kg6 $19 {[%emt 0:00:00]} 42. b6 $2 {[%emt 0:00:00]} (42. Rh8 {is more resistant.}) 42... Kf5 {[%emt 0:00:00] Black is clearly winning.} 43. b7 {[%emt 0:02:37]} Rb3+ {[%emt 0:00:00]} 44. Kf2 g5 {[%emt 0:00:00]} 45. Kg1 {[%emt 0:02:58]} Rb2 {[%emt 0:00:00] ...e5 is the strong threat.} 46. Kf1 {[%emt 0:00:46]} e5 {[%emt 0:00:00][%cal Be6e5,Be5e4][%mdl 32]} 47. Kg1 {[%emt 0:00:33]} e4 {[%emt 0:00:00]} 48. Kf1 {[%emt 0:01:08]} Kf4 {[%emt 0:01:02] And now ...Kg3 would win.} 49. Rf8 {[%emt 0:00:54]} Rxb7 {[%emt 0:00:08]} 50. Rxf6+ {[%emt 0:00:13]} Ke3 {[%emt 0:00:47]} (50... Kg3 $142 51. Rf5 Rb1+ 52. Ke2 Rb2+ 53. Kf1 g4 54. hxg4 Rxg2) 51. g4 {[%emt 0:02:29]} Rb1+ {[%emt 0:07:18] Black used his chance.  Weighted Error Value: White=0.84/Black=0.30} 0-1

[Event "GER-ch Youth-ODJM 2022 A"]
[Site "Willingen"]
[Date "2022.06.10"]
[Round "8.12"]
[White "Kotyk, Michael"]
[Black "Jenner, Meikel"]
[Result "1-0"]
[ECO "D07"]
[WhiteElo "2197"]
[BlackElo "1981"]
[Annotator "TA"]
[PlyCount "105"]
[EventDate "2022.06.05"]
[EventType "swiss"]
[EventRounds "9"]
[EventCountry "GER"]
[SourceTitle "playchess.com"]
[Source "ChessBase"]
[SourceQuality "1"]
[TimeControl "40/4500+30:900+30"]

{[%evp 9,105,142,187,97,118,94,201,189,190,190,158,152,157,163,154,111,104,63,65,68,71,78,106,98,120,51,64,0,50,51,53,52,66,81,102,44,56,41,73,60,168,129,157,106,194,200,236,241,235,237,241,235,236,233,231,226,241,249,449,254,271,264,267,247,248,245,271,269,317,279,337,369,341,352,329,322,387,351,352,353,347,342,730,730,729,729,707,700,691,660,629,523,541,518,997,845,785,724]} 1. d4 {[%emt 0:00:00][%cal Bd2d4,Bd4d5][%mdl 32]} d5 {[%emt 0:00:00]} 2. c4 {[%emt 0:00:00]} Nc6 {[%emt 0:00:00]} 3. Nf3 {[%emt 0:00:00]} Bg4 {[%emt 0:00:00]} 4. Nc3 {[%emt 0:03:25]} dxc4 {[%emt 0:00:00]} 5. d5 {[%emt 0:03:29]} Bxf3 {[%emt 0:00:00]} 6. gxf3 {[%emt 0:01:14] D07: Queen's Gambit: Chigorin Defence.} (6. exf3 $18 {Black must now prevent Qa4.} Ne5 7. Bf4) 6... Ne5 {[%emt 0:00:00]} 7. Qd4 {[%emt 0:07:05]} Ng6 {[%emt 0:05:18]} (7... Nd7 $16) 8. Qxc4 $18 {[%emt 0:02:56] [#] White is clearly better.} Nf6 $146 {[%emt 0:02:30][%cal Oc7c6]} ({Predecessor:} 8... Qd7 9. h4 c6 10. Bh3 Qd6 11. h5 Ne5 12. Qb3 Rb8 13. Be3 b5 14. Rd1 Rb7 {½-½ (32) Chiong Zacarias,R (2301)-Cuhendi,S (2190) Penang 2012}) 9. Qb5+ {[%emt 0:01:47]} c6 {[%emt 0:01:56]} 10. Qxb7 {[%emt 0:03:49] Hoping for Bh3.} cxd5 {[%emt 0:02:52] [#]} 11. e4 $1 {[%emt 0:00:25]} Qc8 {[%emt 0:01:17]} 12. Bb5+ {[%emt 0:00:13]} Kd8 {[%emt 0:00:06]} 13. Ba6 {[%emt 0:04:48] White is much more active. The black rooks are badly placed.} Qxb7 {[%emt 0:02:11]} 14. Bxb7 {[%emt 0:00:06] This bishop pair is nice.} Rb8 {[%emt 0:00:05]} 15. Bxd5 {[%emt 0:00:04]} e6 {[%emt 0:01:16]} 16. Bb3 {[%emt 0:00:29]} Bb4 {[%emt 0:00:46]} 17. Bd2 {[%emt 0:01:44]} (17. Be3 $16) 17... Ke7 {[%emt 0:00:28]} 18. O-O-O {[%emt 0:05:08]} (18. Be3 $14) 18... Ne5 {[%emt 0:02:20]} (18... Rhc8 $11) 19. Bf4 $14 {[%emt 0:01:22]} Nfd7 {[%emt 0:01:13]} 20. Ba4 {[%emt 0:05:03]} Rbc8 {[%emt 0:07:50]} 21. Kc2 {[%emt 0:06:36]} f6 {[%emt 0:10:30]} 22. Bxd7 {[%emt 0:02:28]} ({White should try} 22. Bxe5 $16 Nxe5 23. f4) 22... Nxd7 {[%emt 0:00:07]} 23. Rhg1 {[%emt 0:00:07]} g5 {[%emt 0:01:06]} 24. Be3 {[%emt 0:00:26]} Nc5 {[%emt 0:04:50] Black is now going downhill.} (24... Bc5 $14) 25. Rd4 {[%emt 0:05:06]} Ba5 {[%emt 0:09:21]} 26. Rc4 {[%emt 0:01:14]} (26. e5 $142) 26... Bb6 {[%emt 0:00:47]} (26... Nd7 $16 {is a better defense.} 27. Ra4 Bb6) 27. e5 {[%emt 0:01:28] Strongly threatening exf6+.} Nd7 {[%emt 0:03:33]} 28. exf6+ {[%emt 0:01:00]} Nxf6 {[%emt 0:00:06]} 29. Rxc8 {[%emt 0:00:29]} Rxc8 {[%emt 0:00:11]} 30. Rxg5 {[%emt 0:00:42]} Kf7 {[%emt 0:02:39]} 31. Bxb6 {[%emt 0:03:18]} axb6 $18 {[%emt 0:00:06][%mdl 4096] Endgame KRN-KRN} 32. Kd3 {[%emt 0:00:16] Inhibits Rc4.} h6 {[%emt 0:00:15]} 33. Rb5 {[%emt 0:00:11]} Rg8 $2 {[%emt 0:00:24]} (33... Rb8 34. Rb4 Nd7) 34. h4 {[%emt 0:01:48]} (34. Rxb6 $142 Nd7 35. Rb7) 34... Nd7 {[%emt 0:00:13]} 35. Ne4 {[%emt 0:00:43]} Rg2 {[%emt 0:00:42]} 36. Ke3 {[%emt 0:01:34]} Rh2 {[%emt 0:00:10]} 37. h5 {[%emt 0:00:34]} Rh1 {[%emt 0:00:56]} 38. Nd6+ {[%emt 0:03:48]} Kf6 {[%emt 0:00:17]} 39. Nc8 {[%emt 0:02:35]} Ne5 {[%emt 0:01:33]} 40. Nxb6 {[%emt 0:02:01]} Re1+ {[%emt 0:00:04]} 41. Kf4 {[%emt 0:15:57][%cal Ob5e5]} Nd3+ {[%emt 0:16:07]} 42. Kg3 {[%emt 0:00:18]} e5 {[%emt 0:01:53]} 43. Nc4 {[%emt 0:04:58]} Rg1+ {[%emt 0:04:22]} 44. Kh2 {[%emt 0:00:12]} Rg5 {[%emt 0:00:04]} 45. Rb6+ {[%emt 0:00:42]} Kg7 $2 {[%emt 0:00:04]} (45... Ke7 46. Rxh6 Ne1) 46. Rg6+ {[%emt 0:03:51] White is clearly winning.} Rxg6 {[%emt 0:01:23]} 47. hxg6 {[%emt 0:00:05]} Kxg6 {[%emt 0:00:07] KN-KN} 48. a4 {[%emt 0:00:25][%cal Ba2a4,Ba4a5][%mdl 32]} Kf5 {[%emt 0:00:33]} 49. a5 {[%emt 0:00:07] [#] And now a6 would win.} Nb4 {[%emt 0:00:22]} 50. Kg3 {[%emt 0:00:07]} Ke6 {[%emt 0:01:37]} 51. f4 {[%emt 0:02:40]} e4 {[%emt 0:02:59]} (51... exf4+ $142 52. Kxf4 Kd5 53. Ne3+ Kc5) 52. Kg4 {[%emt 0:01:35]} h5+ {[%emt 0:00:27]} 53. Kg5 {[%emt 0:00:18] Weighted Error Value: White=0.20 (precise) /Black=0.28 (precise)} 1-0

[Event "GER-ch Youth-ODJM 2022 A"]
[Site "Willingen"]
[Date "2022.06.10"]
[Round "8.13"]
[White "Garbuz, Vitaly"]
[Black "Brockmeyer, Tobias"]
[Result "1/2-1/2"]
[ECO "C07"]
[WhiteElo "2134"]
[BlackElo "1936"]
[Annotator "TA"]
[PlyCount "42"]
[EventDate "2022.06.05"]
[EventType "swiss"]
[EventRounds "9"]
[EventCountry "GER"]
[SourceTitle "playchess.com"]
[Source "ChessBase"]
[SourceQuality "1"]
[TimeControl "40/4500+30:900+30"]

{[%evp 10,42,21,19,19,20,15,16,13,15,15,17,21,8,13,12,20,6,49,0,0,0,0,-12,23,10,24,29,60,6,5,0,0,0,0]} 1. e4 {[%emt 0:00:00]} e6 {[%emt 0:00:00]} 2. d4 {[%emt 0:00:00]} d5 {[%emt 0:00:00]} 3. Nd2 {[%emt 0:00:00]} c5 {[%emt 0:00:00]} 4. exd5 {[%emt 0:00:00]} Qxd5 {[%emt 0:00:00]} 5. Ngf3 {[%emt 0:00:00]} cxd4 {[%emt 0:00:00]} 6. Bc4 {[%emt 0:00:00]} Qd7 {[%emt 0:00:00] C07: French Tarrasch: 3...c5, 4 Ngf3 and 4 exd5 Qxd5.} 7. O-O {[%emt 0:00:00]} Nc6 {[%emt 0:00:00]} 8. Nb3 {[%emt 0:00:00]} Nf6 {[%emt 0:00:00]} 9. Nbxd4 {[%emt 0:00:00]} Nxd4 {[%emt 0:00:00]} 10. Nxd4 {[%emt 0:00:00] [#] Threatens to win with Bb5.} a6 {[%emt 0:00:00] Inhibits Bb5.} 11. Re1 {[%emt 0:00:00]} Bc5 {[%emt 0:00:00]} 12. Be3 {[%emt 0:00:00][%cal Od4e6]} Qc7 {[%emt 0:00:00]} 13. Bb3 {[%emt 0:00:00]} b6 {[%emt 0:03:00]} 14. c3 {[%emt 0:00:00]} (14. Bg5 $14) 14... Bb7 $11 {[%emt 0:10:00]} 15. Qe2 {[%emt 0:12:22]} O-O {[%emt 0:06:57]} 16. Rad1 {[%emt 0:02:40]} Rfd8 {[%emt 0:11:57]} 17. Bg5 {[%emt 0:04:25][%cal Od4e6] Black should prevent Nxe6!} Bxd4 {[%emt 0:10:10]} 18. cxd4 {[%emt 0:02:56] And now Bxf6 would win.} Qc6 {[%emt 0:00:17][%csl Gb7][%cal Rc6g2] [#]} 19. d5 $146 {[%emt 0:05:09]} ({White should try} 19. f4 $14) ({Predecessor:} 19. f3 Rac8 20. Qf2 Qb5 21. Qh4 Qf5 22. Re5 Qg6 23. Kh1 h6 24. Bxf6 gxf6 25. Re2 {0-1 (64) Gonzalez Arredondo,L (2062)-Borroto Fajardo,A (1959) Santa Clara 2018}) 19... exd5 {[%emt 0:03:26] The position is equal.} 20. Bxf6 {[%emt 0:04:04]} Qxf6 {[%emt 0:03:09]} 21. Bxd5 $1 {[%emt 0:00:25]} Bxd5 {[%emt 0:00:30] Weighted Error Value: White=0.11 (very precise) /Black=0.08 (flawless)} 1/2-1/2